fUST/lending_fUST_20250126
["ID","MTS","AMOUNT","RATE_DAILY","PERIOD"]
[350397746,1737828634273,-500.0,0.00016438,2]
[350397747,1737828634283,-1559.62,0.00016438,2]
[350397748,1737828634293,-500.0,0.00016438,2]
[350397749,1737828634303,-500.856799,0.00016438,2]
[350397750,1737828634313,-500.0,0.00016438,2]
[350397751,1737828634323,-500.48486868,0.00016438,2]
[350397752,1737828634333,-500.0,0.00016438,2]
[350397753,1737828634345,-500.0,0.00016438,2]
[350397754,1737828634358,-500.0,0.00016438,2]
[350397755,1737828634368,-500.0,0.00016438,2]
[350397756,1737828634378,-500.0,0.00016438,2]
[350397757,1737828634390,-659.88,0.00016438,2]
[350397758,1737828634401,-500.77400455,0.00016438,2]
[350397759,1737828634413,-500.0,0.00016438,2]
[350397760,1737828634423,-5996.5,0.00016438,2]
[350397761,1737828634433,-718.79,0.00016438,2]
[350397762,1737828634443,-500.0,0.00016438,2]
[350397763,1737828634453,-500.0,0.00016438,2]
[350397764,1737828634463,-500.0,0.00016438,2]
[350397765,1737828634473,-500.0,0.00016438,2]
[350397766,1737828634483,-500.0,0.00016438,2]
[350397767,1737828634494,-501.0534461,0.00016438,2]
[350397768,1737828634504,-500.0,0.00016438,2]
[350397769,1737828634514,-150.294325,0.00016438,2]
[350397770,1737828634523,-500.0,0.00016438,2]
[350397771,1737828634533,-500.0,0.00016438,2]
[350397772,1737828634543,-500.81589263,0.00016438,2]
[350397773,1737828634553,-500.0,0.00016438,2]
[350397774,1737828634563,-570.26,0.00016438,2]
[350397775,1737828634573,-502.81402077,0.00016438,2]
[350397776,1737828634582,-500.0,0.00016438,2]
[350397777,1737828634592,-500.0,0.00016438,2]
[350397778,1737828634602,-502.43585345,0.00016438,2]
[350397779,1737828634611,-500.0,0.00016438,2]
[350397780,1737828634620,-500.0,0.00016438,2]
[350397781,1737828634631,-500.0,0.00016438,2]
[350397782,1737828634640,-500.0,0.00016438,2]
[350397783,1737828634650,-500.0,0.00016438,2]
[350397784,1737828634660,-2952.26,0.00016438,2]
[350397785,1737828634670,-500.0,0.00016438,2]
[350397786,1737828634679,-500.0,0.00016438,2]
[350397787,1737828634689,-500.0,0.00016438,2]
[350397788,1737828634699,-500.0,0.00016438,2]
[350397789,1737828634708,-500.0,0.00016438,2]
[350397790,1737828634717,-500.0,0.00016438,2]
[350397791,1737828634726,-541.91808656,0.00016438,2]
[350397792,1737828634736,-500.0,0.00016438,2]
[350397793,1737828634746,-500.0,0.00016438,2]
[350397794,1737828634756,-500.0,0.00016438,2]
[350397795,1737828634766,-575.92,0.00016438,2]
[350397796,1737828634775,-501.01117415,0.00016438,2]
[350397797,1737828634785,-507.25171621,0.00016438,2]
[350397798,1737828634794,-504.08504593,0.00016438,2]
[350397799,1737828634804,-2591.56,0.00016438,2]
[350397800,1737828634814,-500.0,0.00016438,2]
[350397801,1737828634823,-500.0,0.00016438,2]
[350397802,1737828634833,-500.0,0.00016438,2]
[350397803,1737828634843,-964.32,0.00016438,2]
[350397804,1737828634852,-500.0,0.00016438,2]
[350397805,1737828634861,-500.0,0.00016438,2]
[350397806,1737828634871,-500.52785161,0.00016438,2]
[350397807,1737828634882,-500.0,0.00016438,2]
[350397808,1737828634891,-500.0,0.00016438,2]
[350397809,1737828634900,-531.52,0.00016438,2]
[350397810,1737828634910,-500.0,0.00016438,2]
[350397811,1737828634920,-500.0,0.00016438,2]
[350397812,1737828634929,-500.0,0.00016438,2]
[350397813,1737828634938,-500.0,0.00016438,2]
[350397814,1737828634947,-500.37111638,0.00016438,2]
[350397815,1737828634956,-151.0,0.00016438,2]
[350397816,1737828634967,-500.0,0.00016438,2]
[350397817,1737828634977,-1382.81,0.00016438,2]
[350397818,1737828634987,-500.0,0.00016438,2]
[350397819,1737828634996,-500.0,0.00016438,2]
[350397820,1737828635006,-500.0,0.00016438,2]
[350397821,1737828635015,-546.00458312,0.00016438,2]
[350397822,1737828635025,-500.0,0.00016438,2]
[350397823,1737828635035,-500.0,0.00016438,2]
[350397824,1737828635044,-500.0,0.00016438,2]
[350397825,1737828635054,-500.0,0.00016438,2]
[350397826,1737828635063,-500.0,0.00016438,2]
[350397827,1737828635073,-201.12197893,0.00016438,2]
[350397828,1737828635082,-500.0,0.00016438,2]
[350397829,1737828635092,-151.0,0.00016438,2]
[350397830,1737828635102,-925.05,0.00016438,2]
[350397831,1737828635111,-500.0,0.00016438,2]
[350397832,1737828635121,-500.0,0.00016438,2]
[350397833,1737828635131,-500.0,0.00016438,2]
[350397834,1737828635140,-500.0,0.00016438,2]
[350397835,1737828635150,-500.0,0.00016438,2]
[350397836,1737828635159,-500.0,0.00016438,2]
[350397837,1737828635169,-500.0,0.00016438,2]
[350397838,1737828635179,-969.24,0.00016438,2]
[350397839,1737828635188,-500.0,0.00016438,2]
[350397840,1737828635199,-501.82953963,0.00016438,2]
[350397841,1737828635208,-500.0,0.00016438,2]
[350397842,1737828635218,-500.0,0.00016438,2]
[350397843,1737828635227,-509.00227618,0.00016438,2]
[350397844,1737828635237,-502.05255793,0.00016438,2]
[350397845,1737828635247,-1232.33,0.00016438,2]
[350397846,1737828635256,-500.0,0.00016438,2]
[350397847,1737828635266,-500.0,0.00016438,2]
[350397848,1737828635275,-501.56314382,0.00016438,2]
[350397849,1737828635285,-500.0,0.00016438,2]
[350397850,1737828635295,-500.0,0.00016438,2]
[350397851,1737828635304,-500.0,0.00016438,2]
[350397852,1737828635313,-500.54927778,0.00016438,2]
[350397853,1737828635323,-1179.31,0.00016438,2]
[350397854,1737828635333,-500.0,0.00016438,2]
[350397855,1737828635343,-500.32656021,0.00016438,2]
[350397856,1737828635355,-1000.0,0.00016438,7]
[350397857,1737828635365,-500.0,0.00016438,2]
[350397858,1737828635374,-500.0,0.00016438,2]
[350397859,1737828635386,-500.0,0.00016438,2]
[350397860,1737828635395,-500.0,0.00016438,2]
[350397861,1737828635405,-505.22114655,0.00016438,2]
[350397862,1737828635415,-500.0,0.00016438,2]
[350397863,1737828635425,-500.0,0.00016438,2]
[350397864,1737828635434,-1983.3,0.00016438,2]
[350397865,1737828635444,-539.77,0.00016438,2]
[350397866,1737828635454,-631.49941424,0.00016438,2]
[350397867,1737828635463,-500.0,0.00016438,2]
[350397868,1737828635473,-500.0,0.00016438,2]
[350397869,1737828635483,-500.0,0.00016438,2]
[350397870,1737828635492,-500.0,0.00016438,2]
[350397871,1737828635502,-500.0,0.00016438,2]
[350397872,1737828635511,-500.0,0.00016438,2]
[350397873,1737828635521,-500.31852159,0.00016438,2]
[350397874,1737828635530,-500.0,0.00016438,2]
[350397875,1737828635540,-17651.35,0.00016438,2]
[350397876,1737828635550,-500.0,0.00016438,2]
[350397877,1737828635559,-500.0,0.00016438,2]
[350397878,1737828635568,-500.0,0.00016438,2]
[350397879,1737828635578,-500.0,0.00016438,2]
[350397880,1737828635587,-500.53656737,0.00016438,2]
[350397881,1737828635596,-500.0,0.00016438,2]
[350397882,1737828635606,-500.0,0.00016438,2]
[350397883,1737828635615,-500.0,0.00016438,2]
[350397884,1737828635624,-326.63068507,0.00016438,2]
[350397885,1737828635635,-232.51429619,0.00016438,2]
[350397886,1737828635645,-791.32,0.00016438,2]
[350397887,1737828635654,-502.09961188,0.00016438,2]
[350397888,1737828635664,-500.0,0.00016438,2]
[350397889,1737828635674,-5120.26,0.00016438,2]
[350397890,1737828635683,-511.61,0.00016438,2]
[350397891,1737828635693,-959.31,0.00016438,2]
[350397892,1737828635702,-502.79620716,0.00016438,2]
[350397893,1737828635711,-500.0,0.00016438,2]
[350397894,1737828635721,-500.0,0.00016438,2]
[350397895,1737828635730,-500.0,0.00016438,2]
[350397896,1737828635740,-500.0,0.00016438,2]
[350397897,1737828635749,-500.0,0.00016438,2]
[350397898,1737828635759,-1193.91,0.00016438,2]
[350397899,1737828635769,-500.0,0.00016438,2]
[350397900,1737828635779,-500.0,0.00016438,2]
[350397901,1737828635788,-573.77,0.00016438,2]
[350397902,1737828635798,-500.0,0.00016438,2]
[350397903,1737828635807,-500.0,0.00016438,2]
[350397904,1737828635816,-500.0,0.00016438,2]
[350397905,1737828635826,-500.0,0.00016438,2]
[350397906,1737828635836,-500.0,0.00016438,2]
[350397907,1737828635845,-500.0,0.00016438,2]
[350397908,1737828635856,-500.0,0.00016438,2]
[350397909,1737828635865,-501.26397764,0.00016438,2]
[350397910,1737828635875,-500.0,0.00016438,2]
[350397911,1737828635885,-500.0,0.00016438,2]
[350397912,1737828635895,-500.0,0.00016438,2]
[350397913,1737828635904,-506.19069059,0.00016438,2]
[350397914,1737828635915,-500.0,0.00016438,2]
[350397915,1737828635925,-500.0,0.00016438,2]
[350397916,1737828635935,-500.0,0.00016438,2]
[350397917,1737828635944,-500.0,0.00016438,2]
[350397918,1737828635954,-500.0,0.00016438,2]
[350397919,1737828635964,-672.02,0.00016438,2]
[350397920,1737828635974,-500.0,0.00016438,2]
[350397921,1737828635983,-276.54396376,0.00016438,2]
[350397922,1737828635993,-500.0,0.00016438,2]
[350397923,1737828636122,-500.0,0.00016438,2]
[350397924,1737828636132,-500.0,0.00016438,2]
[350397925,1737828636142,-500.0,0.00016438,2]
[350397926,1737828636151,-500.0,0.00016438,2]
[350397927,1737828636160,-500.0,0.00016438,2]
[350397928,1737828636170,-500.68435724,0.00016438,2]
[350397929,1737828636179,-500.0,0.00016438,2]
[350397930,1737828636188,-500.0,0.00016438,2]
[350397931,1737828636198,-500.0,0.00016438,2]
[350397932,1737828636207,-500.0,0.00016438,2]
[350397933,1737828636216,-506.40473895,0.00016438,2]
[350397934,1737828636227,-618.4,0.00016438,2]
[350397935,1737828636236,-500.0,0.00016438,2]
[350397936,1737828636245,-500.0,0.00016438,2]
[350397937,1737828636255,-650.59,0.00016438,2]
[350397938,1737828636264,-650.59,0.00016438,2]
[350397939,1737828636274,-650.59,0.00016438,2]
[350397940,1737828636284,-650.59,0.00016438,2]
[350397941,1737828636293,-650.59,0.00016438,2]
[350397942,1737828636303,-500.0,0.00016473,2]
[350397943,1737828636312,-501.68976539,0.00016473,2]
[350397944,1737828636322,-500.0,0.00016473,2]
[350397945,1737828636332,-509.92278584,0.00016473,2]
[350397946,1737828636342,-500.0,0.00016473,2]
[350397947,1737828636354,-156.735,0.0001653,2]
[350397948,1737828636364,-151.0,0.00016574,2]
[350397949,1737828636374,-151.0,0.00016574,2]
[350397950,1737828636386,-207.74999997,0.00016574,2]
[350397951,1737828636395,-500.0,0.00016575,2]
[350397952,1737828636405,-500.0,0.00016575,2]
[350397953,1737828636415,-500.0,0.00016575,2]
[350397954,1737828636428,-500.0,0.00016575,2]
[350397955,1737828636438,-500.0,0.00016575,2]
[350397956,1737828636450,-500.0,0.00016575,2]
[350397957,1737828636459,-227.8432055,0.00016575,2]
[350397958,1737828636468,-500.0,0.00016575,2]
[350397959,1737828636478,-500.0,0.00016575,2]
[350397960,1737828636487,-500.0,0.00016575,2]
[350397961,1737828636497,-151.0,0.00016575,2]
[350397962,1737828636507,-500.0,0.00016575,2]
[350397963,1737828636519,-500.0,0.00016575,2]
[350397964,1737828636528,-500.0,0.00016575,2]
[350397965,1737828636537,-500.0,0.00016575,2]
[350397966,1737828636547,-731.84,0.00016575,2]
[350397967,1737828636557,-500.0,0.00016575,2]
[350397968,1737828636567,-794.69,0.00016575,2]
[350397969,1737828636576,-500.0,0.00016575,2]
[350397970,1737828636586,-500.0,0.00016575,2]
[350397971,1737828636596,-500.0,0.00016575,2]
[350397972,1737828636606,-500.0,0.00016575,2]
[350397973,1737828636616,-500.0,0.00016575,2]
[350397974,1737828636626,-500.0,0.00016575,2]
[350397975,1737828636636,-500.0,0.00016575,2]
[350397976,1737828636646,-500.0,0.00016575,2]
[350397977,1737828636655,-679.22,0.00016575,2]
[350397978,1737828636665,-500.0,0.00016575,2]
[350397979,1737828636674,-500.0,0.00016575,2]
[350397980,1737828636684,-500.0,0.00016575,2]
[350397981,1737828636694,-500.0,0.00016575,2]
[350397982,1737828636704,-500.0,0.00016575,2]
[350397983,1737828636714,-500.0,0.00016575,2]
[350397984,1737828636724,-500.0,0.00016575,2]
[350397985,1737828636734,-151.0,0.00016575,2]
[350397986,1737828636743,-151.0,0.00016575,2]
[350397987,1737828636753,-500.0,0.00016575,2]
[350397988,1737828636763,-500.0,0.00016575,2]
[350397989,1737828636773,-500.0,0.00016575,2]
[350397990,1737828636783,-500.0,0.00016575,2]
[350397991,1737828636793,-500.0,0.00016575,2]
[350397992,1737828636803,-484.90536665,0.00016575,2]
[350397993,1737828636812,-500.0,0.00016575,2]
[350397994,1737828636822,-500.0,0.00016575,2]
[350397995,1737828636832,-281.6307012,0.00016575,2]
[350397996,1737828636843,-500.0,0.00016575,2]
[350397997,1737828636853,-500.0,0.00016575,2]
[350397998,1737828636862,-500.0,0.00016575,2]
[350397999,1737828636873,-163.63447391,0.00016575,2]
[350398000,1737828636883,-500.0,0.00016575,2]
[350398001,1737828636893,-151.0,0.00016575,2]
[350398002,1737828636902,-151.0,0.00016575,2]
[350398003,1737828636912,-500.0,0.00016575,2]
[350398004,1737828636922,-500.0,0.00016575,2]
[350398005,1737828636931,-504.0,0.00016575,2]
[350398006,1737828636941,-1252.26,0.00016575,2]
[350398007,1737828636951,-500.0,0.00016575,2]
[350398008,1737828636961,-500.0,0.00016575,2]
[350398009,1737828636971,-151.0,0.00016575,2]
[350398010,1737828636980,-1559.62,0.00016575,2]
[350398011,1737828636989,-506.45,0.00016575,2]
[350398012,1737828636998,-500.0,0.00016575,2]
[350398013,1737828637008,-500.0,0.00016575,2]
[350398014,1737828637016,-659.88,0.00016575,2]
[350398015,1737828637026,-151.0,0.00016575,2]
[350398016,1737828637036,-5996.5,0.00016575,2]
[350398017,1737828637046,-718.79,0.00016575,2]
[350398018,1737828637055,-500.0,0.00016575,2]
[350398019,1737828637065,-500.0,0.00016575,2]
[350398020,1737828637074,-570.26,0.00016575,2]
[350398021,1737828637083,-500.0,0.00016575,2]
[350398022,1737828637092,-2952.26,0.00016575,2]
[350398023,1737828637101,-500.0,0.00016575,2]
[350398024,1737828637111,-500.0,0.00016575,2]
[350398025,1737828637120,-500.0,0.00016575,2]
[350398026,1737828637131,-575.92,0.00016575,2]
[350398027,1737828637140,-2591.56,0.00016575,2]
[350398028,1737828637150,-505.69140738,0.00016575,2]
[350398029,1737828637159,-964.32,0.00016575,2]
[350398030,1737828637169,-500.0,0.00016575,2]
[350398031,1737828637179,-500.0,0.00016575,2]
[350398032,1737828637188,-531.52,0.00016575,2]
[350398033,1737828637197,-500.0,0.00016575,2]
[350398034,1737828637207,-500.0,0.00016575,2]
[350398035,1737828637217,-1382.81,0.00016575,2]
[350398036,1737828637227,-403.094666,0.00016575,2]
[350398037,1737828637237,-500.0,0.00016575,2]
[350398038,1737828637246,-500.0,0.00016575,2]
[350398039,1737828637256,-500.0,0.00016575,2]
[350398040,1737828637265,-151.0,0.00016575,2]
[350398041,1737828637275,-925.05,0.00016575,2]
[350398042,1737828637285,-500.0,0.00016575,2]
[350398043,1737828637295,-500.0,0.00016575,2]
[350398044,1737828637304,-500.0,0.00016575,2]
[350398045,1737828637314,-969.24,0.00016575,2]
[350398046,1737828637324,-500.0,0.00016575,2]
[350398047,1737828637333,-500.0,0.00016575,2]
[350398048,1737828637344,-1232.33,0.00016575,2]
[350398049,1737828637357,-500.0,0.00016575,2]
[350398050,1737828637366,-151.0,0.00016575,2]
[350398051,1737828637376,-151.0,0.00016575,2]
[350398052,1737828637386,-500.0,0.00016575,2]
[350398053,1737828637396,-151.484205,0.00016575,2]
[350398055,1737828637406,-500.0,0.00016575,2]
[350398056,1737828637416,-1179.31,0.00016575,2]
[350398057,1737828637426,-1000.0,0.00016575,7]
[350398058,1737828637436,-500.0,0.00016575,2]
[350398060,1737828637446,-500.0,0.00016575,2]
[350398062,1737828637456,-500.0,0.00016575,2]
[350398064,1737828637466,-1983.3,0.00016575,2]
[350398066,1737828637476,-539.77,0.00016575,2]
[350398067,1737828637486,-500.0,0.00016575,2]
[350398068,1737828637496,-500.0,0.00016575,2]
[350398069,1737828637507,-500.0,0.00016575,2]
[350398070,1737828637517,-17651.35,0.00016575,2]
[350398071,1737828637527,-500.0,0.00016575,2]
[350398073,1737828637538,-350.4246439,0.00016575,2]
[350398074,1737828637548,-500.0,0.00016575,2]
[350398075,1737828637558,-791.32,0.00016575,2]
[350398076,1737828637568,-203.596258,0.00016575,2]
[350398077,1737828637577,-203.596258,0.00016575,2]
[350398078,1737828637587,-500.0,0.00016575,2]
[350398079,1737828637597,-511.61,0.00016575,2]
[350398080,1737828637607,-5120.26,0.00016575,2]
[350398081,1737828637616,-959.31,0.00016575,2]
[350398083,1737828637625,-203.596258,0.00016575,2]
[350398085,1737828637634,-203.596258,0.00016575,2]
[350398087,1737828637643,-500.0,0.00016575,2]
[350398089,1737828637653,-500.0,0.00016575,2]
[350398091,1737828637662,-1193.91,0.00016575,2]
[350398093,1737828637672,-500.0,0.00016575,2]
[350398095,1737828637681,-573.77,0.00016575,2]
[350398097,1737828637691,-500.0,0.00016575,2]
[350398099,1737828637701,-500.0,0.00016575,2]
[350398101,1737828637711,-500.0,0.00016575,2]
[350398103,1737828637721,-500.0,0.00016575,2]
[350398105,1737828637730,-672.02,0.00016575,2]
[350398107,1737828637739,-500.0,0.00016575,2]
[350398109,1737828637750,-500.0,0.00016575,2]
[350398111,1737828637762,-500.0,0.00016575,2]
[350398113,1737828637773,-618.4,0.00016575,2]
[350398115,1737828637783,-500.0,0.00016712,2]
[350398117,1737828637792,-500.0,0.00016712,2]
[350398119,1737828637801,-500.0,0.00016712,2]
[350398121,1737828637811,-500.0,0.00016712,2]
[350398122,1737828637820,-525.83376995,0.00016712,2]
[350398124,1737828637830,-500.0,0.00016712,2]
[350398126,1737828637839,-500.0,0.00016712,2]
[350398128,1737828637849,-500.0,0.00016712,2]
[350398130,1737828637858,-500.0,0.00016712,2]
[350398132,1737828637868,-500.0,0.00016712,2]
[350398134,1737828637877,-500.0,0.00016712,2]
[350398136,1737828637888,-500.0,0.00016712,2]
[350398138,1737828637898,-731.84,0.00016712,2]
[350398140,1737828637908,-500.0,0.00016712,2]
[350398141,1737828637917,-794.69,0.00016712,2]
[350398143,1737828637927,-500.0,0.00016712,2]
[350398145,1737828637936,-500.0,0.00016712,2]
[350398147,1737828637946,-500.0,0.00016712,2]
[350398149,1737828637956,-473.90078964,0.00016712,2]
[350398151,1737828637966,-500.0,0.00016712,2]
[350398153,1737828637975,-500.0,0.00016712,2]
[350398155,1737828637985,-500.0,0.00016712,2]
[350398156,1737828637994,-500.0,0.00016712,2]
[350398158,1737828638004,-679.22,0.00016712,2]
[350398160,1737828638014,-500.0,0.00016712,2]
[350398162,1737828638024,-500.0,0.00016712,2]
[350398164,1737828638033,-500.0,0.00016712,2]
[350398166,1737828638043,-500.0,0.00016712,2]
[350398168,1737828638053,-500.0,0.00016712,2]
[350398170,1737828638063,-500.0,0.00016712,2]
[350398172,1737828638073,-500.0,0.00016712,2]
[350398174,1737828638083,-151.0,0.00016712,2]
[350398176,1737828638093,-151.0,0.00016712,2]
[350398178,1737828638103,-500.0,0.00016712,2]
[350398180,1737828638112,-500.0,0.00016712,2]
[350398182,1737828638122,-500.0,0.00016712,2]
[350398184,1737828638133,-500.0,0.00016712,2]
[350398187,1737828638143,-500.0,0.00016712,2]
[350398188,1737828638154,-500.0,0.00016712,2]
[350398190,1737828638163,-500.0,0.00016712,2]
[350398193,1737828638173,-500.0,0.00016712,2]
[350398194,1737828638183,-500.0,0.00016712,2]
[350398197,1737828638192,-500.0,0.00016712,2]
[350398199,1737828638202,-151.0,0.00016712,2]
[350398201,1737828638211,-151.0,0.00016712,2]
[350398203,1737828638221,-500.0,0.00016712,2]
[350398205,1737828638230,-500.0,0.00016712,2]
[350398207,1737828638239,-1252.26,0.00016712,2]
[350398209,1737828638248,-500.0,0.00016712,2]
[350398210,1737828638257,-159.24557031,0.00016712,2]
[350398212,1737828638267,-1559.62,0.00016712,2]
[350398215,1737828638277,-500.0,0.00016712,2]
[350398217,1737828638286,-500.0,0.00016712,2]
[350398218,1737828638295,-659.88,0.00016712,2]
[350398221,1737828638305,-151.0,0.00016712,2]
[350398223,1737828638314,-151.0,0.00016712,2]
[350398225,1737828638323,-5996.5,0.00016712,2]
[350398227,1737828638333,-718.79,0.00016712,2]
[350398229,1737828638342,-500.0,0.00016712,2]
[350398231,1737828638356,-500.0,0.00016712,2]
[350398233,1737828638365,-570.26,0.00016712,2]
[350398235,1737828638375,-500.0,0.00016712,2]
[350398237,1737828638386,-2952.26,0.00016712,2]
[350398239,1737828638396,-500.0,0.00016712,2]
[350398241,1737828638406,-500.0,0.00016712,2]
[350398243,1737828638415,-500.0,0.00016712,2]
[350398245,1737828638427,-575.92,0.00016712,2]
[350398247,1737828638439,-2591.56,0.00016712,2]
[350398249,1737828638450,-964.32,0.00016712,2]
[350398251,1737828638460,-500.0,0.00016712,2]
[350398253,1737828638470,-531.52,0.00016712,2]
[350398255,1737828638480,-500.0,0.00016712,2]
[350398257,1737828638489,-500.0,0.00016712,2]
[350398259,1737828638501,-1382.81,0.00016712,2]
[350398261,1737828638511,-500.0,0.00016712,2]
[350398263,1737828638520,-500.0,0.00016712,2]
[350398267,1737828638560,-500.0,0.00016712,2]
[350398268,1737828638570,-153.015441,0.00016712,2]
[350398270,1737828638580,-925.05,0.00016712,2]
[350398272,1737828638590,-500.0,0.00016712,2]
[350398273,1737828638600,-969.24,0.00016712,2]
[350398275,1737828638609,-1232.33,0.00016712,2]
[350398277,1737828638618,-500.0,0.00016712,2]
[350398279,1737828638628,-500.0,0.00016712,2]
[350398280,1737828638638,-500.0,0.00016712,2]
[350398282,1737828638647,-1179.31,0.00016712,2]
[350398284,1737828638656,-500.0,0.00016712,7]
[350398286,1737828638665,-500.0,0.00016712,2]
[350398287,1737828638675,-500.0,0.00016712,2]
[350398289,1737828638684,-1983.3,0.00016712,2]
[350398291,1737828638693,-539.77,0.00016712,2]
[350398292,1737828638703,-500.0,0.00016712,2]
[350398294,1737828638713,-536.23,0.00016712,2]
[350398296,1737828638722,-17651.35,0.00016712,2]
[350398298,1737828638730,-500.0,0.00016712,2]
[350398299,1737828638740,-500.0,0.00016712,2]
[350398301,1737828638750,-791.32,0.00016712,2]
[350398303,1737828638759,-203.596258,0.00016712,2]
[350398304,1737828638768,-203.596258,0.00016712,2]
[350398306,1737828638778,-500.0,0.00016712,2]
[350398308,1737828638788,-511.61,0.00016712,2]
[350398310,1737828638798,-5120.26,0.00016712,2]
[350398311,1737828638811,-959.31,0.00016712,2]
[350398313,1737828638821,-203.596258,0.00016712,2]
[350398315,1737828638830,-203.596258,0.00016712,2]
[350398316,1737828638840,-500.0,0.00016712,2]
[350398318,1737828638850,-1193.91,0.00016712,2]
[350398320,1737828638859,-500.0,0.00016712,2]
[350398322,1737828638869,-573.77,0.00016712,2]
[350398324,1737828638878,-500.0,0.00016712,2]
[350398325,1737828638888,-500.0,0.00016712,2]
[350398327,1737828638897,-500.0,0.00016712,2]
[350398328,1737828638906,-672.02,0.00016712,2]
[350398330,1737828638916,-500.0,0.00016712,2]
[350398332,1737828638926,-500.0,0.00016712,2]
[350398334,1737828638935,-618.4,0.00016712,2]
[350398336,1737828638945,-395.0,0.00016809,2]
[350398337,1737828638955,-500.0,0.00016849,2]
[350398339,1737828638966,-500.0,0.00016849,2]
[350398341,1737828638976,-500.0,0.00016849,2]
[350398343,1737828638985,-500.0,0.00016849,2]
[350398345,1737828638995,-500.0,0.00016849,2]
[350398347,1737828639008,-500.0,0.00016849,2]
[350398349,1737828639017,-500.0,0.00016849,2]
[350398350,1737828639026,-500.0,0.00016849,2]
[350398352,1737828639037,-256.62851103,0.00016849,2]
[350398354,1737828639046,-500.0,0.00016849,2]
[350398355,1737828639055,-731.84,0.00016849,2]
[350398357,1737828639065,-237.81734681,0.00016849,2]
[350398359,1737828639074,-794.69,0.00016849,2]
[350398361,1737828639086,-500.0,0.00016849,2]
[350398363,1737828639095,-500.0,0.00016849,2]
[350398364,1737828639103,-500.0,0.00016849,2]
[350398366,1737828639112,-477.74,0.00016849,2]
[350398368,1737828639121,-679.22,0.00016849,2]
[350398370,1737828639131,-500.0,0.00016849,2]
[350398371,1737828639140,-500.0,0.00016849,2]
[350398373,1737828639149,-500.0,0.00016849,2]
[350398374,1737828639158,-500.0,0.00016849,2]
[350398376,1737828639168,-500.0,0.00016849,2]
[350398378,1737828639178,-500.0,0.00016849,2]
[350398380,1737828639188,-500.0,0.00016849,2]
[350398381,1737828639198,-500.0,0.00016849,2]
[350398383,1737828639208,-500.0,0.00016849,2]
[350398385,1737828639219,-500.0,0.00016849,2]
[350398387,1737828639231,-500.0,0.00016849,2]
[350398388,1737828639244,-500.0,0.00016849,2]
[350398389,1737828639254,-151.0,0.00016849,2]
[350398390,1737828639263,-500.0,0.00016849,2]
[350398391,1737828639273,-1252.26,0.00016849,2]
[350398392,1737828639283,-1559.62,0.00016849,2]
[350398393,1737828639292,-500.0,0.00016849,2]
[350398394,1737828639306,-659.88,0.00016849,2]
[350398395,1737828639315,-151.0,0.00016849,2]